[Event "36th Mitropa Cup Open 2018"]
[Site "Isola Capo Rizzuto"]
[Date "2018.05.31"]
[Round "1.15"]
[White "Baenziger, Fabian"]
[Black "Jablonicky, Martin"]
[Result "1-0"]
[ECO "E62"]
[WhiteElo "2377"]
[BlackElo "2349"]
[Annotator "RC"]
[PlyCount "55"]
[EventDate "2018.05.31"]
[EventType "team-tourn"]
[EventCountry "ITA"]
[SourceTitle "playchess.com"]
[Source "ChessBase"]
[SourceQuality "1"]
[WhiteTeam "Switzerland"]
[BlackTeam "Slovakia"]
[WhiteTeamCountry "SUI"]
[BlackTeamCountry "SVK"]
[TimeControl "40/5400+30:1800+30"]

1. d4 {[%emt 0:00:00]} Nf6 {[%emt 0:00:05]} 2. Nf3 {[%emt 0:00:08]} g6 {[%emt 0:00:13]} 3. c4 {[%emt 0:00:30]} Bg7 {[%emt 0:00:07]} 4. g3 {[%emt 0:00:06]} O-O {[%emt 0:00:07]} 5. Bg2 {[%emt 0:00:06]} d6 {[%emt 0:00:40]} 6. Nc3 {[%emt 0:00:11]} c6 {[%emt 0:01:08]} 7. O-O {[%emt 0:00:12]} Bf5 {[%emt 0:00:34]} 8. Ng5 {[%emt 0:01:31]} d5 {[%emt 0:04:55]} 9. Qb3 {[%emt 0:01:55]} Qb6 {[%emt 0:01:05]} 10. cxd5 {[%emt 0:05:33]} cxd5 {[%emt 0:00:05]} 11. Nxd5 {[%emt 0:09:14]} Nxd5 {[%emt 0:00:07]} 12. Bxd5 {[%emt 0:00:41]} Qxb3 {[%emt 0:00:05]} 13. axb3 {[%emt 0:00:48]} Nc6 {[%emt 0:00:07]} 14. e3 {[%emt 0:00:05]} e5 {[%emt 0:04:36]} 15. dxe5 {[%emt 0:03:17]} Bxe5 {[%emt 0:00:15]} 16. f4 {[%emt 0:16:03]} Bg7 {[%emt 0:01:49]} 17. e4 {[%emt 0:00:13]} Bc8 {[%emt 0:03:29]} 18. e5 {[%emt 0:02:26]} h6 {[%emt 0:12:59]} 19. Ne4 {[%emt 0:01:46]} Nb4 {[%emt 0:17:58]} 20. Bc4 {[%emt 0:03:08]} Bh3 {[%emt 0:01:18]} 21. Rf2 {[%emt 0:00:25]} Rfd8 {[%emt 0:17:13]} 22. Be3 {[%emt 0:06:23]} Bf8 {[%emt 0:00:42]} 23. g4 {[%emt 0:07:26]} Kg7 {[%emt 0:00:24]} 24. f5 {[%emt 0:00:18]} Nd5 {[%emt 0:13:13]} 25. Bd4 {[%emt 0:03:24]} Nb6 {[%emt 0:05:40]} 26. Bc3 {[%emt 0:01:14]} Nxc4 {[%emt 0:04:15]} 27. e6+ {[%emt 0:01:03]} Kh7 {[%emt 0:00:06]} 28. fxg6+ {[%emt 0:01:43]} 1-0

[Event "36th Mitropa Cup Open 2018"]
[Site "Isola Capo Rizzuto"]
[Date "2018.06.06"]
[Round "6"]
[White "Haring, Filip"]
[Black "Kreisl, Robert"]
[Result "0-1"]
[ECO "B14"]
[WhiteElo "2344"]
[BlackElo "2402"]
[Annotator "ChessBase"]
[PlyCount "120"]
[EventDate "2018.05.31"]
[EventType "team-tourn"]
[EventCountry "ITA"]
[SourceTitle "playchess.com"]
[Source "ChessBase"]
[SourceQuality "1"]
[WhiteTeam "Slovakia"]
[BlackTeam "Austria"]
[WhiteTeamCountry "SVK"]
[BlackTeamCountry "AUT"]
[TimeControl "40/5400+30:1800+30"]

1. e4 c6 {[%emt 0:00:03]} 2. d4 {[%emt 0:00:05]} d5 {[%emt 0:00:23]} 3. exd5 {[%emt 0:00:04]} cxd5 {[%emt 0:00:51]} 4. c4 {[%emt 0:00:05]} Nf6 {[%emt 0:00:15]} 5. Nc3 {[%emt 0:00:04]} g6 {[%emt 0:00:25]} 6. cxd5 {[%emt 0:00:05]} Nxd5 {[%emt 0:00:32]} 7. Qb3 {[%emt 0:00:05]} Nb6 {[%emt 0:00:41]} 8. Bb5+ {[%emt 0:00:23]} Bd7 {[%emt 0:02:27]} 9. Nf3 {[%emt 0:00:11]} Bg7 {[%emt 0:03:27]} 10. Ne5 {[%emt 0:00:26]} O-O {[%emt 0:02:49]} 11. Nxd7 {[%emt 0:03:18]} N8xd7 {[%emt 0:00:28]} 12. Be3 {[%emt 0:00:20]} Nf6 {[%emt 0:01:39]} 13. O-O {[%emt 0:02:28]} Nfd5 {[%emt 0:02:22]} 14. a4 {[%emt 0:19:54]} a5 {[%emt 0:01:45]} 15. Be2 {[%emt 0:11:18]} Rc8 {[%emt 0:06:15]} 16. Rac1 {[%emt 0:07:03]} e6 {[%emt 0:05:05]} 17. Ne4 {[%emt 0:06:06]} Rxc1 {[%emt 0:14:42]} 18. Rxc1 {[%emt 0:02:40]} Nxe3 {[%emt 0:00:06]} 19. fxe3 {[%emt 0:00:19]} Nd5 {[%emt 0:00:38]} 20. Nf2 {[%emt 0:00:35]} Qg5 {[%emt 0:22:16]} 21. Rc3 {[%emt 0:02:29]} Nxc3 {[%emt 0:09:02]} 22. Qxc3 {[%emt 0:03:54]} Qd5 {[%emt 0:01:46]} 23. Bc4 {[%emt 0:04:52]} Qc6 {[%emt 0:02:08]} 24. Bb5 {[%emt 0:00:29]} Qxc3 {[%emt 0:00:45]} 25. bxc3 {[%emt 0:06:52]} f5 {[%emt 0:00:34]} 26. Nd3 {[%emt 0:00:51]} Kf7 {[%emt 0:01:23]} 27. Nc5 {[%emt 0:00:42]} b6 {[%emt 0:01:17]} 28. Nd7 {[%emt 0:00:52]} Rc8 {[%emt 0:00:15]} 29. c4 {[%emt 0:00:51]} f4 {[%emt 0:00:06]} 30. Kf2 {[%emt 0:00:31]} Rd8 {[%emt 0:04:00]} 31. c5 {[%emt 0:02:29]} bxc5 {[%emt 0:02:17]} 32. dxc5 {[%emt 0:03:17]} Ke7 {[%emt 0:00:06]} 33. c6 {[%emt 0:01:48]} fxe3+ {[%emt 0:00:07]} 34. Kxe3 {[%emt 0:01:44]} Kd6 {[%emt 0:00:05]} 35. Nb6 {[%emt 0:00:18]} Kc7 {[%emt 0:01:33]} 36. Nd7 {[%emt 0:01:11]} Kd6 {[%emt 0:00:11]} 37. Nb6 {[%emt 0:01:23]} Kc7 {[%emt 0:00:06]} 38. Nd7 {[%emt 0:03:46]} Bf8 {[%emt 0:00:25]} 39. Kf4 {[%emt 0:13:16]} Bd6+ {[%emt 0:03:30]} 40. Ke4 {[%emt 0:00:32]} Bxh2 {[%emt 0:33:38]} 41. Nc5 {[%emt 0:31:56]} Rd6 {[%emt 0:01:10]} 42. Nb3 {[%emt 0:00:00]} e5 {[%emt 0:00:00]} 43. Nxa5 {[%emt 0:00:00]} Rd4+ {[%emt 0:00:00]} 44. Ke3 {[%emt 0:00:00]} Bg1+ {[%emt 0:00:00]} 45. Ke2 {[%emt 0:00:00]} Rb4 {[%emt 0:00:00]} 46. Kd3 {[%emt 0:00:00]} e4+ {[%emt 0:00:00]} 47. Kc3 {[%emt 0:00:00]} Rd4 {[%emt 0:00:00]} 48. Nb3 {[%emt 0:00:00]} Rd6 {[%emt 0:00:00]} 49. a5 {[%emt 0:00:00]} Be3 {[%emt 0:00:00]} 50. Kc4 {[%emt 0:00:00]} h5 {[%emt 0:00:00]} 51. a6 {[%emt 0:00:00]} g5 {[%emt 0:00:00]} 52. Na1 {[%emt 0:00:00]} h4 {[%emt 0:00:00]} 53. Nc2 {[%emt 0:00:00]} Bb6 {[%emt 0:00:00]} 54. Nb4 {[%emt 0:00:00]} g4 {[%emt 0:00:00]} 55. Kb3 {[%emt 0:02:21]} h3 {[%emt 0:00:00]} 56. gxh3 {[%emt 0:03:13]} gxh3 {[%emt 0:00:00]} 57. Bf1 {[%emt 0:00:02]} Rh6 {[%emt 0:00:00]} 58. Bb5 {[%emt 0:00:45]} Rh5 {[%emt 0:02:07]} 59. a7 {[%emt 0:00:56]} Bxa7 {[%emt 0:02:15]} 60. Na6+ {[%emt 0:00:05]} Kd6 {[%emt 0:00:16]} 0-1

[Event "36th Mitropa Cup Open 2018"]
[Site "Isola Capo Rizzuto"]
[Date "2018.06.09"]
[Round "9"]
[White "Dobrovoljc, Vid"]
[Black "Haring, Filip"]
[Result "1/2-1/2"]
[ECO "A07"]
[WhiteElo "2310"]
[BlackElo "2344"]
[Annotator "NA"]
[PlyCount "150"]
[EventDate "2018.05.31"]
[EventType "team-tourn"]
[EventCountry "ITA"]
[SourceTitle "playchess.com"]
[Source "ChessBase"]
[SourceQuality "1"]
[WhiteTeam "Slovenia"]
[BlackTeam "Slovakia"]
[WhiteTeamCountry "SLO"]
[BlackTeamCountry "SVK"]
[TimeControl "40/5400+30:1800+30"]

1. Nf3 d5 {[%emt 0:00:24]} 2. g3 {[%emt 0:00:43]} c6 {[%emt 0:00:47]} 3. Bg2 {[%emt 0:00:08]} Bg4 {[%emt 0:01:11]} 4. O-O {[%emt 0:00:13]} Nd7 {[%emt 0:02:28]} 5. d4 {[%emt 0:00:14]} e6 {[%emt 0:02:35]} 6. h3 {[%emt 0:01:27] A07: Réti Opening: New York and Capablanca Systems} Bh5 {[%emt 0:01:03]} 7. c4 {[%emt 0:03:52]} Ngf6 {[%emt 0:00:21]} 8. cxd5 {[%emt 0:00:34]} exd5 {[%emt 0:00:08]} 9. Qb3 {[%emt 0:00:51]} (9. Ne5 Ne4 10. Nd2 Nxd2 11. Bxd2 Nxe5 12. dxe5 Bc5 13. Kh2 O-O {½-½ (32) Svidler,P (2768)-Karjakin,S (2753) Wijk aan Zee 2018}) 9... Qb6 {[%emt 0:00:12]} 10. Qe3+ {[%emt 0:09:08]} Be7 {[%emt 0:01:52]} 11. Nh4 {[%emt 0:00:09]} Bg6 $146 {[%emt 0:00:06]} ({Predecessor:} 11... Kf8 12. Nc3 {1-0 (58) Sethuraman,S (2618)-Raghunandan,K (2398) Abu Dhabi 2017}) 12. Nc3 {[%emt 0:01:58]} Kf8 {[%emt 0:03:01]} 13. Nxg6+ {[%emt 0:10:19]} hxg6 {[%emt 0:16:30]} 14. Qd3 {[%emt 0:00:26]} Re8 {[%emt 0:00:27]} 15. Bd2 {[%emt 0:04:53]} Kg8 {[%emt 0:14:36]} 16. Rae1 {[%emt 0:03:04]} Kh7 {[%emt 0:06:58]} 17. Bf3 {[%emt 0:04:00]} Bd6 {[%emt 0:07:54]} 18. Kg2 {[%emt 0:13:38]} Qxb2 {[%emt 0:03:45]} 19. Rb1 {[%emt 0:02:21]} Qa3 {[%emt 0:03:43]} 20. Rxb7 {[%emt 0:00:10]} Rb8 {[%emt 0:02:45]} 21. Rxb8 {[%emt 0:01:19]} Rxb8 {[%emt 0:01:54]} 22. h4 {[%emt 0:00:18]} Kg8 {[%emt 0:00:54]} 23. Rh1 {[%emt 0:04:25]} Bb4 {[%emt 0:04:58]} 24. Qc2 {[%emt 0:04:26]} Nb6 $14 {[%emt 0:08:03]} 25. Bf4 {[%emt 0:04:34]} Re8 {[%emt 0:09:26]} 26. Nb1 {[%emt 0:02:48]} Qa6 {[%emt 0:00:42]} 27. e3 {[%emt 0:03:13]} Qc4 {[%emt 0:04:42]} 28. Rc1 {[%emt 0:02:08]} Qxc2 {[%emt 0:00:30]} 29. Rxc2 {[%emt 0:05:33]} Re6 {[%emt 0:00:06]} 30. Be2 {[%emt 0:00:07]} Ne4 {[%emt 0:01:54]} 31. Ba6 {[%emt 0:01:40]} Kf8 {[%emt 0:00:34]} 32. Bb8 {[%emt 0:03:31]} Na4 {[%emt 0:01:08]} 33. a3 {[%emt 0:10:33]} Bd6 {[%emt 0:00:50]} 34. Bxa7 {[%emt 0:01:03]} Re7 {[%emt 0:00:10]} 35. Rxc6 {[%emt 0:00:19]} Rxa7 {[%emt 0:00:45]} 36. f3 {[%emt 0:00:34]} Nxg3 {[%emt 0:00:16]} 37. Rxd6 {[%emt 0:02:07]} Nf5 {[%emt 0:00:15]} 38. Rc6 {[%emt 0:00:10]} Nxe3+ {[%emt 0:00:05]} 39. Kf2 {[%emt 0:01:26]} Nf5 {[%emt 0:00:07]} 40. Bb5 {[%emt 0:00:28]} Nxd4 {[%emt 0:30:50]} 41. Bxa4 {[%emt 0:31:04]} Rxa4 {[%emt 0:00:08]} 42. Rc5 {[%emt 0:00:00]} Nf5 {[%emt 0:00:00]} 43. Rxd5 {[%emt 0:00:00]} Rxh4 {[%emt 0:00:00]} 44. Nc3 {[%emt 0:00:00]} Rh2+ {[%emt 0:00:00]} 45. Kg1 {[%emt 0:00:00]} Rc2 {[%emt 0:00:00]} 46. Rc5 {[%emt 0:00:00]} Nd4 {[%emt 0:00:00]} 47. Kf1 {[%emt 0:00:00]} Ke7 {[%emt 0:00:00]} 48. a4 {[%emt 0:00:00]} Ke6 {[%emt 0:00:00]} 49. f4 {[%emt 0:00:00]} f6 {[%emt 0:00:00]} 50. Ne4 {[%emt 0:00:00]} Ra2 {[%emt 0:00:00]} 51. Nc3 {[%emt 0:00:00]} Rc2 {[%emt 0:00:00]} 52. Ne4 {[%emt 0:00:00]} Rxc5 {[%emt 0:00:00]} 53. Nxc5+ {[%emt 0:00:00]} Kf5 {[%emt 0:00:00]} 54. a5 {[%emt 0:00:00]} Kxf4 {[%emt 0:00:00]} 55. a6 {[%emt 0:00:02]} Nb5 {[%emt 0:00:00]} 56. Ne6+ {[%emt 0:00:33]} Ke5 {[%emt 0:00:00]} 57. Nf8 {[%emt 0:00:24]} g5 {[%emt 0:00:00]} 58. Kf2 {[%emt 0:00:27]} Kd6 {[%emt 0:00:00]} 59. Kf3 {[%emt 0:02:01]} Nd4+ {[%emt 0:00:00]} 60. Ke4 {[%emt 0:03:18]} Nc6 {[%emt 0:00:00]} 61. Kf5 {[%emt 0:00:14]} Ke7 {[%emt 0:00:00]} 62. Ng6+ {[%emt 0:01:10]} Kf7 {[%emt 0:00:00]} 63. Nh8+ {[%emt 0:00:30]} Ke8 {[%emt 0:00:00]} 64. Ng6 {[%emt 0:01:43]} Kd7 {[%emt 0:00:00]} 65. Nf8+ {[%emt 0:00:33]} Kd6 {[%emt 0:00:00]} 66. Ne6 {[%emt 0:00:42]} g4 {[%emt 0:00:00]} 67. Nf4 {[%emt 0:00:57]} g5 {[%emt 0:00:00]} 68. Nh5 {[%emt 0:00:55]} Ke7 {[%emt 0:00:00]} 69. Nxf6 {[%emt 0:00:32]} g3 {[%emt 0:00:00]} 70. Nd5+ {[%emt 0:00:23]} Kd6 {[%emt 0:00:00]} 71. Ne3 {[%emt 0:00:22]} Nd4+ {[%emt 0:00:00]} 72. Kxg5 {[%emt 0:00:45]} Kc6 {[%emt 0:00:00]} 73. Kg4 {[%emt 0:00:29]} Kb6 {[%emt 0:00:00]} 74. Kxg3 {[%emt 0:00:04]} Nf5+ {[%emt 0:00:00]} 75. Nxf5 {[%emt 0:00:04]} Kxa6 {[%emt 0:00:00]} 1/2-1/2